[Event "Austrian Championship 2022"]
[Site "Vienna"]
[Date "2022.08.15"]
[Round "4.19"]
[White "Wagner, Leopold Franziskus"]
[Black "Albadri Abd Al Sattar"]
[Result "1/2-1/2"]
[ECO "A48"]
[WhiteElo "2080"]
[BlackElo "2161"]
[Annotator "TA"]
[PlyCount "43"]
[EventDate "2022.08.12"]
[EventType "swiss"]
[EventCountry "AUT"]
[SourceTitle "playchess.com"]
[Source "ChessBase"]
[SourceQuality "1"]
[TimeControl "40/5400+30:1800+30"]

{[%evp 9,43,0,0,0,0,-5,-9,-13,0,-9,0,0,0,-2,5,6,43,42,22,16,22,20,15,18,77,0,12,0,0,4,5,0,0,0,0,0]} 1. d4 {[%emt 0:00:03]} Nf6 {[%emt 0:00:51]} 2. Nf3 {[%emt 0:00:08]} g6 {[%emt 0:00:42]} 3. Bg5 {[%emt 0:01:34]} Bg7 {[%emt 0:00:12]} 4. Nbd2 {[%emt 0:00:07]} h6 {[%emt 0:01:29]} 5. Bxf6 {[%emt 0:01:19]} exf6 {[%emt 0:00:54]} 6. e4 {[%emt 0:04:49] A48: 1 d4 Nf6 2 Nf3 g6: Torre, London and Colle Systems.} O-O {[%emt 0:00:11]} 7. Bc4 {[%emt 0:06:20]} d6 {[%emt 0:02:22]} 8. O-O {[%emt 0:00:29] [#]} Nc6 $146 {[%emt 0:00:13]} ({Predecessor:} 8... f5 9. exf5 Bxf5 10. c3 Nd7 11. Re1 c6 12. Nf1 b5 13. Bd3 Bxd3 14. Qxd3 Nb6 {0-1 (32) Scalise,L (2139)-Liascovich,L (2209) Buenos Aires 2000}) 9. c3 {[%emt 0:00:29]} f5 {[%emt 0:00:52]} 10. exf5 {[%emt 0:01:20]} Bxf5 {[%emt 0:01:20]} 11. Re1 {[%emt 0:01:31]} a6 {[%emt 0:02:03]} 12. Nf1 {[%emt 0:00:42]} Qf6 {[%emt 0:03:57]} 13. Ne3 {[%emt 0:03:53]} Rae8 {[%emt 0:04:21]} 14. Nxf5 {[%emt 0:04:51]} Qxf5 {[%emt 0:00:43]} 15. Bd3 {[%emt 0:04:20]} Rxe1+ {[%emt 0:00:49]} 16. Nxe1 {[%emt 0:00:00]} Qd7 {[%emt 0:00:22]} (16... Qe6 $11 {remains equal.}) 17. Nc2 {[%emt 0:01:13]} (17. Qb3 $16) 17... Re8 {[%emt 0:00:48] The position is equal.} 18. Qd2 {[%emt 0:00:54]} Ne7 {[%emt 0:03:09][%cal Bc6e7,Be7d5,Bd5f6][%mdl 32]} 19. Re1 {[%emt 0:01:11]} Nd5 {[%emt 0:00:26]} 20. Be4 {[%emt 0:01:32]} Nf6 {[%emt 0:03:46]} 21. Bf3 {[%emt 0:01:25]} c6 {[%emt 0:03:32]} 22. Rxe8+ {[%emt 0:00:14] Weighted Error Value: White=0.07 (flawless) /Black=0.11 (very precise)} 1/2-1/2

[Event "Austrian Championship 2022"]
[Site "Vienna"]
[Date "2022.08.15"]
[Round "4.20"]
[White "Leitner, Gerald"]
[Black "Scheffknecht, Philipp"]
[Result "1/2-1/2"]
[ECO "D35"]
[WhiteElo "2145"]
[BlackElo "2093"]
[Annotator "TA"]
[PlyCount "90"]
[EventDate "2022.08.12"]
[EventType "swiss"]
[EventCountry "AUT"]
[SourceTitle "playchess.com"]
[Source "ChessBase"]
[SourceQuality "1"]
[TimeControl "40/5400+30:1800+30"]

{[%evp 21,90,31,31,30,30,31,35,0,41,56,49,29,34,34,27,29,41,37,56,45,50,50,70,68,97,99,102,53,100,54,93,64,79,64,81,11,27,0,0,-12,-14,-8,-8,-135,0,-61,4,-124,-124,-135,-130,-129,-128,-115,-21,-22,0,0,0,0,0,0,0,0,0,0,0,0,0,0,0]} 1. d4 {[%emt 0:00:03]} Nf6 {[%emt 0:10:16]} 2. Nf3 {[%emt 0:00:17]} e6 {[%emt 0:00:16]} 3. c4 {[%emt 0:00:08]} d5 {[%emt 0:00:32]} 4. Nc3 {[%emt 0:00:05]} c6 {[%emt 0:00:15]} 5. cxd5 {[%emt 0:00:57]} exd5 {[%emt 0:00:10]} 6. Qc2 {[%emt 0:00:02]} Be7 {[%emt 0:07:30]} 7. Bf4 {[%emt 0:00:08]} Nbd7 {[%emt 0:00:55][%cal Bb8d7,Bd7f8,Bf8e6][%mdl 32]} 8. e3 {[%emt 0:00:07]} O-O {[%emt 0:00:26]} 9. Bd3 {[%emt 0:00:12]} Re8 {[%emt 0:02:53]} 10. O-O {[%emt 0:01:54]} Nf8 {[%emt 0:01:07]} 11. h3 {[%emt 0:00:16]} Ne6 {[%emt 0:01:57]} 12. Bh2 $1 {[%emt 0:00:05] The main line 12.Bh2 scores better than 12.Be5. D35: Queen's Gambit Declined: Exchange Variation.} g6 {[%emt 0:01:49]} 13. Rab1 {[%emt 0:04:27]} a5 {[%emt 0:05:56] [#]} 14. Rfc1 $146 {[%emt 0:06:22] White is slightly better.} ({Predecessor:} 14. a3 Ng7 15. b4 axb4 16. axb4 Bf5 17. b5 Bd6 18. Ne5 c5 19. Bxf5 Nxf5 20. Ng4 Bxh2+ 21. Nxh2 cxd4 22. exd4 Nxd4 {½-½ (57) Balakrishnan,P (2498)-Kozak,A (2503) Chess.com INT 2020}) 14... b5 {[%emt 0:29:41]} 15. Ne5 {[%emt 0:13:07]} Bb7 {[%emt 0:03:51]} 16. Ne2 {[%emt 0:16:08]} Rc8 {[%emt 0:00:42]} 17. Nf4 {[%emt 0:00:21]} Nxf4 {[%emt 0:02:58]} 18. Bxf4 {[%emt 0:01:17]} Kg7 {[%emt 0:01:58]} 19. Qe2 $36 {[%emt 0:09:56][%cal Of4h6][%mdl 2048] White is pushing.} Nd7 {[%emt 0:09:22]} 20. Rc2 {[%emt 0:09:19]} Nxe5 {[%emt 0:00:20]} 21. Bxe5+ {[%emt 0:00:02]} f6 {[%emt 0:01:17]} 22. Bf4 {[%emt 0:00:11] White is more active.} Bd6 {[%emt 0:01:09]} 23. Bxd6 {[%emt 0:01:26]} Qxd6 {[%emt 0:00:09]} 24. Rc5 {[%emt 0:00:06]} (24. a4 $16) 24... f5 {[%emt 0:03:08] [#]} (24... a4 $1 $14 {is more appropriate.}) 25. Qd2 {[%emt 0:05:05]} ({White should play} 25. a4 $1 $16) 25... Re7 {[%emt 0:06:30]} 26. b3 {[%emt 0:01:15]} (26. Qxa5 $6 Ra8 27. Qb4 Ra4 $11) 26... Rf8 {[%emt 0:01:46]} 27. g3 {[%emt 0:00:29] Against f4} ({Reject} 27. Qxa5 f4 $11) 27... Bc8 {[%emt 0:02:03]} 28. Bf1 {[%emt 0:01:30]} (28. a4 $16) 28... g5 $11 {[%emt 0:05:34][%cal Bg6g5,Bg5f4][%mdl 32]} 29. Rbc1 {[%emt 0:12:48]} Bd7 {[%emt 0:00:00]} 30. Qxa5 {[%emt 0:01:35]} f4 {[%emt 0:00:00]} 31. exf4 {[%emt 0:00:08]} gxf4 {[%emt 0:00:00]} 32. Qc3 {[%emt 0:00:17]} (32. R5c3 $11) 32... Rf6 {[%emt 0:00:00]} (32... Kg8 $17 {And now ...fxg3 would win.} 33. Bg2 b4) 33. Bg2 {[%emt 0:06:04]} ({Better is} 33. g4 $11) 33... Re2 {[%emt 0:00:00]} (33... b4 $15 34. Qf3 fxg3 35. Qxg3+ Qxg3 36. fxg3 Re2) 34. Rc2 {[%emt 0:02:02]} (34. a4 $11) 34... Rxc2 $17 {[%emt 0:00:00][%mdl 64] Deflection} 35. Qxc2 {[%emt 0:00:11]} fxg3 {[%emt 0:00:08]} 36. fxg3 {[%emt 0:01:20]} Qxg3 {[%emt 0:00:08]} 37. Rc3 {[%emt 0:00:13] [#]} Qe1+ {[%emt 0:01:11]} (37... Qf4 $1 $17 {Hoping for ...b4.} 38. Qd3 b4 39. Qg3+ Kh6) 38. Kh2 $11 {[%emt 0:00:01] The position is equal.} Qh4 {[%emt 0:02:59]} (38... Bf5 $5 39. Qc1 Qxc1 40. Rxc1 b4 $11) 39. Rg3+ {[%emt 0:00:45]} Rg6 {[%emt 0:00:26]} 40. Rxg6+ {[%emt 0:00:28]} ({Much worse is} 40. Qf2 Qxg3+ 41. Qxg3 Rxg3 42. Kxg3 b4 $15) 40... hxg6 {[%emt 0:00:03] KQB-KQB} 41. Qd2 {[%emt 0:30:31]} b4 {[%emt 0:05:47]} 42. Qxb4 {[%emt 0:00:00]} Qf4+ {[%emt 0:00:13]} 43. Kg1 {[%emt 0:00:00]} Qe3+ {[%emt 0:00:18]} 44. Kh1 {[%emt 0:00:00]} Qc1+ {[%emt 0:00:16]} 45. Kh2 {[%emt 0:00:00]} Qf4+ {[%emt 0:00:07] Weighted Error Value: White=0.31/Black=0.21 (precise)} 1/2-1/2

[Event "Austrian Championship 2022"]
[Site "Vienna"]
[Date "2022.08.15"]
[Round "4.21"]
[White "Bauer, Thomas"]
[Black "Kersten, Julian"]
[Result "1-0"]
[ECO "C07"]
[WhiteElo "2228"]
[BlackElo "1999"]
[Annotator "TA"]
[PlyCount "51"]
[EventDate "2022.08.12"]
[EventType "swiss"]
[EventCountry "AUT"]
[SourceTitle "playchess.com"]
[Source "ChessBase"]
[SourceQuality "1"]
[TimeControl "40/5400+30:1800+30"]

{[%evp 10,51,25,23,16,12,18,18,18,17,17,-6,16,0,0,0,1,0,64,67,302,190,180,143,150,150,152,141,141,146,227,213,260,234,685,667,716,628,29990,29991,29991,29992,29995,29994]} 1. e4 {[%emt 0:00:02]} e6 {[%emt 0:00:35]} 2. d4 {[%emt 0:00:06]} d5 {[%emt 0:00:13]} 3. Nd2 {[%emt 0:00:06]} c5 {[%emt 0:01:28]} 4. exd5 {[%emt 0:00:46]} Qxd5 {[%emt 0:00:10]} 5. Ngf3 {[%emt 0:00:07]} cxd4 {[%emt 0:00:10]} 6. Bc4 {[%emt 0:00:04]} Qd7 {[%emt 0:00:23] C07: French Tarrasch: 3...c5, 4 Ngf3 and 4 exd5 Qxd5.} 7. O-O {[%emt 0:00:06][%mdl 1024] White has compensation.} Nc6 {[%emt 0:00:38]} 8. Qe2 {[%emt 0:01:56]} a6 {[%emt 0:04:35] The position is equal.} 9. a4 {[%emt 0:01:10]} Nf6 {[%emt 0:02:27]} 10. Nb3 {[%emt 0:00:42]} Bd6 {[%emt 0:01:34]} 11. Bg5 {[%emt 0:00:04]} Qc7 {[%emt 0:01:37]} 12. Rfd1 {[%emt 0:03:59] [#]} Ng4 $146 {[%emt 0:14:43][%cal Rd6h2]} ({Predecessor:} 12... Ne5 13. Nxe5 Bxe5 14. h3 h6 15. Bd2 O-O 16. Bb4 Re8 17. Nxd4 Nd5 18. Nf3 Nxb4 19. Nxe5 {½-½ (41) Ristic,N (2337)-Narayanan,S (2296) Chess.com INT 2021}) 13. Nbxd4 {[%emt 0:24:02]} O-O {[%emt 0:19:07]} (13... h6 $1 $11 14. Bc1 (14. Nxc6 hxg5 15. Nxg5 Be7 $15) 14... Bxh2+ 15. Kf1 Nce5) 14. Nxc6 $14 {[%emt 0:08:50]} Bxh2+ {[%emt 0:06:42] This move loses the game for Black.} ({Black should try} 14... bxc6 $14 15. g3 Bc5) 15. Kh1 {[%emt 0:17:56]} bxc6 {[%emt 0:01:34]} 16. g3 {[%emt 0:04:36] Inhibits Bf4.} Bxg3 {[%emt 0:02:55]} 17. fxg3 {[%emt 0:01:00]} Qxg3 {[%emt 0:00:34] [#] Hoping for ...Nf2+.} 18. Bh4 $36 {[%emt 0:01:21][%mdl 2048] Keeping Black busy. Active counter play! A strong pair of Bishops.} Qh3+ {[%emt 0:05:56]} 19. Kg1 {[%emt 0:00:02]} Bb7 {[%emt 0:03:32]} (19... c5 $16 {might work better.}) 20. Rd7 $18 {[%emt 0:03:27]} Rab8 {[%emt 0:05:46]} 21. Qe4 {[%emt 0:02:58] [#] aiming for Bd3. The board is on fire.} Nf6 $2 {[%emt 0:02:58]} (21... Bc8) 22. Bxf6 {[%emt 0:01:32]} gxf6 {[%emt 0:00:02]} 23. Kf2 {[%emt 0:00:26] Prevents Qg3+.} Ba8 {[%emt 0:05:53]} 24. Rg1+ {[%emt 0:01:44] White mates.} Kh8 {[%emt 0:00:07]} 25. Qf4 {[%emt 0:01:55][%cal Rf4f6]} f5 {[%emt 0:02:38]} 26. Qg5 {[%emt 0:00:42] Weighted Error Value: White=0.12 (very precise) /Black=0.78} 1-0

[Event "Austrian Championship 2022"]
[Site "Vienna"]
[Date "2022.08.15"]
[Round "4.22"]
[White "Kristoferitsch, Daniel"]
[Black "Miazhynski, Michael"]
[Result "1-0"]
[ECO "A58"]
[WhiteElo "2312"]
[BlackElo "1994"]
[Annotator "TA"]
[PlyCount "85"]
[EventDate "2022.08.12"]
[EventType "swiss"]
[EventCountry "AUT"]
[SourceTitle "playchess.com"]
[Source "ChessBase"]
[SourceQuality "1"]
[TimeControl "40/5400+30:1800+30"]

{[%evp 9,85,9,45,38,46,45,67,22,32,27,41,33,40,43,39,35,33,35,39,33,46,28,30,30,29,25,33,20,30,15,20,16,31,0,0,0,0,22,113,120,170,154,145,133,141,147,154,108,141,154,150,149,130,88,138,57,154,157,208,204,206,206,243,259,273,251,261,245,401,379,740,714,1386,1224,29990,29991,29992,29992]} 1. d4 {[%emt 0:00:07]} Nf6 {[%emt 0:00:07]} 2. c4 {[%emt 0:00:06][%cal Bc2c4,Bc4b5][%mdl 32]} c5 {[%emt 0:00:14]} 3. d5 {[%emt 0:00:06]} b5 {[%emt 0:00:11]} 4. cxb5 {[%emt 0:00:04]} a6 {[%emt 0:00:07]} 5. bxa6 {[%emt 0:00:16]} g6 {[%emt 0:00:07]} 6. Nc3 {[%emt 0:00:05] A58: Benko/Volga Gambit: Lines with 5 bxa6.} Bg7 {[%emt 0:00:06]} 7. e4 {[%emt 0:00:05]} O-O {[%emt 0:00:10]} 8. a7 {[%emt 0:00:04] White is slightly better.} Rxa7 {[%emt 0:00:04]} 9. Nf3 {[%emt 0:00:10]} e6 {[%emt 0:00:50]} 10. Be2 {[%emt 0:01:51]} exd5 {[%emt 0:00:30]} 11. exd5 {[%emt 0:00:07]} d6 {[%emt 0:00:08]} 12. O-O {[%emt 0:00:10]} Na6 {[%emt 0:00:34]} 13. Nb5 {[%emt 0:01:29]} Rd7 {[%emt 0:00:21]} 14. Bc4 {[%emt 0:00:50]} Bb7 {[%emt 0:00:17]} 15. Qb3 {[%emt 0:02:19]} Qa8 {[%emt 0:01:36][%cal Rb7d5]} 16. Rd1 {[%emt 0:00:14]} Nc7 {[%emt 0:43:59]} 17. Nxc7 {[%emt 0:07:01]} Rxc7 {[%emt 0:00:02][%cal Bd7c7,Bc7b7,Bb7b4][%mdl 32]} 18. Bf4 {[%emt 0:04:33]} Rd8 {[%emt 0:01:13]} 19. a4 {[%emt 0:23:22]} Ba6 {[%emt 0:02:27]} 20. Nd2 {[%emt 0:03:14]} Rb7 {[%emt 0:01:13]} 21. Qd3 {[%emt 0:00:38]} Rb4 {[%emt 0:03:37][%cal Oa8d5]} 22. Bg5 {[%emt 0:04:40]} Bxc4 {[%emt 0:07:54]} 23. Nxc4 {[%emt 0:00:10] [#]} Qa6 $146 {[%emt 0:01:41]} (23... Rdb8 $11) ({Predecessor:} 23... Rxa4 24. Rac1 Rb8 25. Bxf6 Bxf6 26. Nxd6 Bxb2 27. Qf3 Qa7 28. Rc4 Ra1 29. Ne4 Qa2 {½-½ (57) Serikbay,A (2125)-Calzetta Ruiz,M (2235) Batumi 2018}) 24. b3 $36 {[%emt 0:01:30][%mdl 2048] [#] Black must now prevent Qf3. White is in control.} Rdb8 {[%emt 0:02:46]} (24... Ra8 $16) 25. Ra3 {[%emt 0:00:58]} Re8 {[%emt 0:17:04]} 26. Bd2 {[%emt 0:12:30]} Rb7 {[%emt 0:01:38]} 27. Bc3 {[%emt 0:00:48]} Rbe7 {[%emt 0:00:58][%cal Of6d5]} 28. Kf1 {[%emt 0:06:09]} (28. Raa1 $142) 28... Ng4 {[%emt 0:06:15] [#] Hoping for ...Re2.} 29. Bxg7 {[%emt 0:02:17]} Kxg7 {[%emt 0:00:02]} 30. h3 {[%emt 0:00:55]} Nh6 {[%emt 0:00:19]} 31. Ne3 {[%emt 0:03:12]} Qa5 {[%emt 0:01:47]} (31... Ra7 $142) 32. Qd2 {[%emt 0:04:37]} ({White should try} 32. Raa1 $16) 32... Qa6+ {[%emt 0:01:32]} ({Better is} 32... Qxd2 $14 33. Rxd2 Nf5) 33. Kg1 {[%emt 0:00:15]} f5 {[%emt 0:00:06]} (33... f6 $16 34. b4 cxb4 35. Qxb4 Nf7) 34. a5 {[%emt 0:03:25]} f4 {[%emt 0:01:19]} 35. Nc4 {[%emt 0:00:12]} Rf7 {[%emt 0:02:43]} 36. Re1 {[%emt 0:01:53]} Rxe1+ {[%emt 0:00:35]} 37. Qxe1 {[%emt 0:00:01]} Nf5 {[%emt 0:00:12][%cal Of4f3]} 38. Qe8 {[%emt 0:02:15]} Qb7 $2 {[%emt 0:01:58]} (38... Re7 39. Qd8 Rb7) 39. a6 $18 {[%emt 0:08:24]} Qxd5 {[%emt 0:00:53]} (39... Qa7 40. Ra2 f3 41. gxf3 h6) 40. a7 {[%emt 0:01:05]} Ng3 {[%emt 0:01:16]} 41. Ra1 {[%emt 0:35:10]} Qd3 {[%emt 0:04:08]} 42. a8=Q {[%emt 0:00:00]} Ne2+ {[%emt 0:00:14]} 43. Kh1 {[%emt 0:00:00] Weighted Error Value: White=0.09 (flawless) /Black=0.34} 1-0

[Event "Austrian Championship 2022"]
[Site "Vienna"]
[Date "2022.08.15"]
[Round "4.23"]
[White "Oberhuber, Alexander"]
[Black "Schnepp, Gunnar"]
[Result "0-1"]
[ECO "A29"]
[WhiteElo "2062"]
[BlackElo "2265"]
[Annotator "TA"]
[PlyCount "104"]
[EventDate "2022.08.12"]
[EventType "swiss"]
[EventCountry "AUT"]
[SourceTitle "playchess.com"]
[Source "ChessBase"]
[SourceQuality "1"]
[TimeControl "40/5400+30:1800+30"]

{[%evp 23,104,11,42,-10,-8,-16,-10,-14,-11,-26,-19,-19,-19,-30,-12,-42,-32,-42,-35,-36,-36,-34,-11,-24,-40,-22,-7,-72,-46,-70,-39,-56,-43,-51,-67,-60,-24,-120,-119,-174,-175,-238,-118,-123,-104,-130,-127,-194,-185,-224,-183,-194,-183,-179,-192,-252,-166,-229,-239,-241,-235,-244,-233,-331,-310,-402,-397,-363,-360,-421,-420,-417,-404,-395,-340,-434,-433,-298,-379,-387,-385,-1062,-992]} 1. c4 {[%emt 0:00:03]} e5 {[%emt 0:00:02]} 2. g3 {[%emt 0:00:56]} Nf6 {[%emt 0:00:04]} 3. Bg2 {[%emt 0:00:15]} d5 {[%emt 0:00:12]} 4. cxd5 {[%emt 0:00:06]} Nxd5 {[%emt 0:00:04]} 5. Nc3 {[%emt 0:00:16]} Nb6 {[%emt 0:00:19]} 6. Nf3 {[%emt 0:00:46]} Nc6 {[%emt 0:00:03]} 7. O-O {[%emt 0:00:26]} Be7 {[%emt 0:00:06]} 8. a3 {[%emt 0:02:28]} a5 {[%emt 0:07:08]} 9. d3 {[%emt 0:02:02]} Be6 {[%emt 0:03:02]} 10. Be3 {[%emt 0:05:48]} Nd5 {[%emt 0:04:00]} 11. Nxd5 {[%emt 0:05:58]} Bxd5 {[%emt 0:00:15]} 12. Rc1 {[%emt 0:00:23]} O-O {[%emt 0:03:24]} 13. Nd2 {[%emt 0:06:05] A29: English Opening: Four Knights Variation with 4 g3.} (13. Qa4 $14) 13... Bxg2 $11 {[%emt 0:03:57]} 14. Kxg2 {[%emt 0:00:09]} Nd4 {[%emt 0:00:34]} 15. Bxd4 {[%emt 0:07:03] The position is equal.} exd4 {[%emt 0:02:13] [#]} 16. Qc2 $146 {[%emt 0:04:16]} ({Predecessor:} 16. a4 Bg5 17. Rc4 Bxd2 18. Qxd2 Qd5+ 19. Kg1 c5 20. e4 dxe3 21. Qxe3 b6 22. Qe4 Qxe4 23. Rxe4 {½-½ (30) Zupe,M (2338)-Guid,M (2311) Slovenia 2011}) 16... Qd5+ {[%emt 0:13:20]} 17. Nf3 {[%emt 0:01:01]} c5 {[%emt 0:13:21]} 18. a4 {[%emt 0:01:40]} Ra6 {[%emt 0:03:24][%cal Ba8a6,Ba6b6,Bb6b4][%mdl 32]} 19. Qc4 {[%emt 0:02:47]} Qc6 {[%emt 0:04:26]} 20. Qa2 {[%emt 0:06:05]} Rb6 {[%emt 0:12:27]} 21. Kg1 {[%emt 0:07:24]} Rb4 {[%emt 0:01:09]} 22. Rc4 {[%emt 0:00:38]} Qe6 {[%emt 0:00:43]} 23. b3 {[%emt 0:00:19]} Rb6 {[%emt 0:00:53]} 24. Re1 {[%emt 0:02:23]} Qd5 {[%emt 0:04:58]} 25. Nd2 {[%emt 0:12:25]} (25. e4 $11 Qe6 26. Qc2) 25... h5 {[%emt 0:01:38]} 26. Qc2 {[%emt 0:07:39]} Re6 {[%emt 0:05:12]} 27. e4 {[%emt 0:05:23]} dxe3 $1 {[%emt 0:00:21]} 28. Rxe3 {[%emt 0:00:08]} Rxe3 {[%emt 0:04:36]} 29. fxe3 {[%emt 0:00:07]} Bg5 {[%emt 0:00:17]} 30. Nf1 {[%emt 0:02:16]} (30. e4 $11 {keeps the balance.} Be3+ 31. Kf1) 30... b6 $17 {[%emt 0:00:18]} 31. d4 {[%emt 0:02:17]} (31. h4 $17 Bf6 32. Nd2) 31... cxd4 $19 {[%emt 0:00:30]} 32. exd4 {[%emt 0:00:49] [#]} (32. Qd3 $142) 32... Re8 {[%emt 0:02:03]} (32... Bf6 $1 $19 {[%cal Rf6d4] has better winning chances.} 33. Qg2 Bxd4+ 34. Kh1 Qd7) 33. Qg2 $17 {[%emt 0:08:22]} Re4 $36 {[%emt 0:00:39][%cal Be8e4,Be4d4,Bd4d5,Bd5d3,Bd3a3][%mdl 2080] Black has strong initiative. 0x0.001f25ac7491dp-1022s more active pieces.} 34. Rc8+ {[%emt 0:00:57]} Kh7 {[%emt 0:00:06]} 35. Kh1 {[%emt 0:01:33]} (35. Qf3 $17 Bf6 36. Nd2 Rxd4 37. Qxd5 Rxd5 38. Ne4) 35... g6 {[%emt 0:06:02]} ({Weaker is} 35... Rxd4 36. Qxd5 Rxd5 37. Rc6) (35... Qxd4 $2 36. Rc4 $18) 36. h4 {[%emt 0:02:43]} Bf6 {[%emt 0:00:44]} 37. Re8 {[%emt 0:00:56]} Rxd4 {[%emt 0:00:40]} 38. Qxd5 {[%emt 0:02:42]} Rxd5 $19 {[%emt 0:00:02][%mdl 4096] Endgame KRB-KRN} 39. Re4 {[%emt 0:01:10]} (39. Re3 $142) 39... Rd3 {[%emt 0:04:27]} 40. b4 {[%emt 0:00:35]} (40. Re3 {might work better.} Rd1 41. Rf3) 40... axb4 {[%emt 0:02:05]} 41. Rxb4 {[%emt 0:30:09]} Bd4 {[%emt 0:01:07]} 42. Kg2 {[%emt 0:00:00]} Kg7 {[%emt 0:09:50]} 43. Rb5 {[%emt 0:00:00] [#]} (43. Nh2 {keeps fighting.}) 43... Ra3 $1 {[%emt 0:00:34]} 44. Rb4 {[%emt 0:00:00]} Ra2+ {[%emt 0:03:00]} 45. Kh1 {[%emt 0:00:00]} Bc5 {[%emt 0:01:03]} 46. Rc4 {[%emt 0:00:00]} f5 {[%emt 0:04:44]} 47. Nh2 {[%emt 0:00:00]} Ra1+ {[%emt 0:01:27]} 48. Kg2 {[%emt 0:00:00]} Rg1+ {[%emt 0:00:06]} 49. Kh3 {[%emt 0:00:00]} Bd6 {[%emt 0:00:34][%csl Gd6][%cal Rg1g3]} 50. Rc3 {[%emt 0:00:00]} Kf6 {[%emt 0:00:44]} 51. Rf3 {[%emt 0:00:00]} Ra1 {[%emt 0:00:49]} 52. g4 $2 {[%emt 0:00:00]} (52. Rb3 Bc5 53. Nf3) 52... Rh1 {[%emt 0:01:23] Weighted Error Value: White=0.42/Black=0.15 (very precise)} 0-1

[Event "Austrian Championship 2022"]
[Site "Vienna"]
[Date "2022.08.15"]
[Round "4.24"]
[White "Fuchs, Patrick"]
[Black "Steiner, Adam"]
[Result "1/2-1/2"]
[ECO "B15"]
[WhiteElo "1990"]
[BlackElo "2226"]
[Annotator "TA"]
[PlyCount "111"]
[EventDate "2022.08.12"]
[EventType "swiss"]
[EventCountry "AUT"]
[SourceTitle "playchess.com"]
[Source "ChessBase"]
[SourceQuality "1"]
[TimeControl "40/5400+30:1800+30"]

{[%evp 16,111,23,14,37,12,8,7,12,0,12,0,5,-13,0,0,0,-10,0,-16,0,0,30,-7,0,-12,-7,-30,-30,-27,-23,-20,-20,-30,-23,-17,-6,-6,-6,-6,-6,-6,-6,-6,-6,-8,0,0,-1,-8,0,-4,-4,-4,0,0,0,0,0,0,30,0,0,-6,0,0,104,0,0,0,0,0,0,0,0,0,0,0,0,0,0,0,0,0,0,0,0,0,0,0,0,0,0,0,0,0,0,0]} 1. e4 {[%emt 0:00:05]} c6 {[%emt 0:00:06]} 2. Nc3 {[%emt 0:00:13]} d5 {[%emt 0:00:02]} 3. Nf3 {[%emt 0:00:09]} dxe4 {[%emt 0:00:02]} 4. Nxe4 {[%emt 0:00:08]} Nf6 {[%emt 0:00:11]} 5. Nxf6+ {[%emt 0:00:08]} exf6 {[%emt 0:00:02]} 6. Bc4 {[%emt 0:00:19]} Bd6 {[%emt 0:00:09]} 7. Qe2+ {[%emt 0:00:09]} Be7 {[%emt 0:00:08]} 8. O-O {[%emt 0:02:32]} O-O {[%emt 0:00:02]} 9. d4 {[%emt 0:02:27]} Bd6 $1 {[%emt 0:00:07] The main line 9...Bd6 scores better than 9...Bg4. B15: Caro-Kann: 3 Nc3: 3...g6 and 3...dxe4 4 Nxe4 Nf6 5 Nxf6+ exf6.} 10. h3 {[%emt 0:02:01]} Re8 {[%emt 0:01:10]} 11. Qd3 {[%emt 0:03:46]} Nd7 {[%emt 0:14:19][%cal Bb8d7,Bd7f8,Bf8g6,Bg6f4][%mdl 32] [#]} 12. Bb3 $146 {[%emt 0:03:11]} ({Predecessor:} 12. Bd2 Nb6 13. Bb3 a5 14. a4 Nd5 15. Rfe1 Be6 16. Rad1 Qd7 17. c4 Bf5 18. Qf1 {1-0 (43) Drazic,S (2303)-Audi,A (2418) Novi Sad 2022}) 12... Nf8 {[%emt 0:00:49]} 13. c4 {[%emt 0:03:45]} (13. Bd2 {with more complications.} a5 14. a4 Bd7 15. Rae1) 13... a5 {[%emt 0:04:27][%cal Ob7b5]} 14. a4 {[%emt 0:02:41]} b6 {[%emt 0:02:34]} 15. Rd1 {[%emt 0:04:11]} Ra7 {[%emt 0:04:17]} 16. Bc2 {[%emt 0:08:24]} Rae7 {[%emt 0:01:00]} 17. b3 {[%emt 0:01:00]} Ng6 {[%emt 0:06:42]} 18. Bd2 {[%emt 0:02:54]} f5 {[%emt 0:05:06]} 19. Re1 {[%emt 0:04:16]} Nf4 {[%emt 0:01:05]} 20. Bxf4 {[%emt 0:00:17]} Bxf4 {[%emt 0:00:01]} 21. Kf1 {[%emt 0:02:31]} Bd6 {[%emt 0:00:41]} 22. Rxe7 {[%emt 0:00:30]} Rxe7 {[%emt 0:00:17]} 23. Re1 {[%emt 0:00:08]} Bb4 {[%emt 0:00:57]} 24. Rxe7 {[%emt 0:00:13]} Qxe7 {[%emt 0:00:02]} 25. Qe2 $1 {[%emt 0:11:34]} f6 {[%emt 0:11:47]} 26. Qxe7 {[%emt 0:00:46]} Bxe7 $11 {[%emt 0:00:02][%mdl 4096] Endgame KBB-KBN} 27. Nh4 {[%emt 0:19:55]} g6 {[%emt 0:00:19]} 28. f4 {[%emt 0:00:20]} Kf7 {[%emt 0:11:08]} 29. Kf2 {[%emt 0:06:35]} Ba3 {[%emt 0:02:55]} 30. g3 {[%emt 0:01:52]} Ke6 {[%emt 0:03:41]} 31. Bd1 {[%emt 0:02:36]} Kd6 {[%emt 0:02:32]} 32. Ng2 {[%emt 0:02:11]} Bd7 {[%emt 0:07:38]} 33. Be2 {[%emt 0:01:01]} Be6 {[%emt 0:10:06]} 34. Ke3 {[%emt 0:06:19]} Kc7 {[%emt 0:04:42]} 35. Bf3 {[%emt 0:01:56]} Bf7 {[%emt 0:01:03]} 36. Ne1 {[%emt 0:01:21]} b5 {[%emt 0:06:23]} 37. Kd3 {[%emt 0:02:31]} Be8 {[%emt 0:01:33]} 38. Bd1 {[%emt 0:00:41]} Bc1 {[%emt 0:00:42]} 39. Ng2 {[%emt 0:00:16]} Bb2 {[%emt 0:00:24]} 40. Ne3 {[%emt 0:02:02]} Bc1 {[%emt 0:00:32]} (40... b4 $11 {remains equal.}) 41. cxb5 {[%emt 0:02:48]} (41. axb5 $16 h5 42. bxc6) 41... Bxe3 {[%emt 0:01:35] The position is equal.} 42. Kxe3 {[%emt 0:00:05] [#] Black must now prevent bxc6.} cxb5 {[%emt 0:00:05]} 43. axb5 {[%emt 0:02:15]} Bxb5 $16 {[%emt 0:00:08] KB-KB} 44. Be2 {[%emt 0:00:25]} a4 {[%emt 0:02:06]} 45. bxa4 {[%emt 0:01:45]} ({Not} 45. Bxb5 $2 a3 46. Bc4 a2 $19) 45... Bxa4 {[%emt 0:00:46]} 46. Bc4 {[%emt 0:00:02]} Be8 {[%emt 0:05:40]} 47. Bg8 {[%emt 0:00:36]} h6 {[%emt 0:01:02]} 48. d5 {[%emt 0:01:00]} Kd6 {[%emt 0:00:43]} 49. Kd4 {[%emt 0:00:03]} Bd7 {[%emt 0:03:43]} 50. Bf7 {[%emt 0:04:50]} g5 {[%emt 0:00:12]} 51. h4 {[%emt 0:00:57]} Bc8 {[%emt 0:01:06]} 52. Bg6 {[%emt 0:01:09]} Bb7 {[%emt 0:00:27]} 53. Bf7 {[%emt 0:00:03]} Bc8 {[%emt 0:00:27]} 54. Bg8 {[%emt 0:00:03]} Bb7 {[%emt 0:02:42]} 55. Be6 {[%emt 0:00:08]} Ba8 {[%emt 0:00:08]} 56. Bc8 {[%emt 0:00:10] Weighted Error Value: White=0.06 (flawless) /Black=0.10 (very precise)} 1/2-1/2